bitfinex/quotes_BTCUSD_20250826
["timestamp","ask_amount","ask_price","bid_price","bid_amount"]
[1756192349656,0.3738143,110030.0,110020.0,0.04650356]
[1756192349867,0.38015196,110030.0,110020.0,0.22828868]
[1756192350080,0.96594474,110030.0,110020.0,0.22828868]
[1756192350431,0.96594474,110030.0,110020.0,0.04650356]
[1756192351213,0.97228354,110030.0,110020.0,0.04650356]
[1756192352349,0.99872046,110030.0,110020.0,0.04650356]
[1756192352562,0.99657046,110030.0,110020.0,0.04650356]
[1756192352787,0.99657046,110030.0,110020.0,0.22828868]
[1756192353020,0.97228354,110030.0,110020.0,0.04650356]
[1756192353227,0.97228354,110030.0,110020.0,0.22828868]
[1756192353440,0.75701193,110030.0,110020.0,0.04650356]
[1756192353647,0.78254053,110030.0,110020.0,0.04650356]
[1756192354942,0.78025025,110030.0,110020.0,0.04650356]
[1756192356269,0.77389904,110030.0,110020.0,0.04650356]
[1756192356940,0.1817686,110030.0,110020.0,0.04650356]
[1756192357170,0.77389904,110030.0,110020.0,0.22828868]
[1756192357393,0.59213044,110030.0,110020.0,0.3197507]
[1756192357612,0.59213044,110030.0,110020.0,0.4759107]
[1756192357890,0.68702234,110050.0,110030.0,0.18175955]
[1756192358102,0.68917234,110050.0,110040.0,0.00199]
[1756192358343,0.54944846,110050.0,110040.0,0.00199]
[1756192358769,0.54309253,110050.0,110040.0,0.00199]
[1756192359034,0.53082234,110050.0,110040.0,0.18685209]
[1756192359266,0.59213044,110050.0,110040.0,0.27831411]
[1756192359490,0.77386601,110050.0,110040.0,0.27831411]
[1756192359699,0.59213044,110050.0,110040.0,0.27831411]
[1756192359923,0.77386601,110050.0,110040.0,0.27831411]
[1756192360577,0.77601601,110050.0,110040.0,0.09656202]
[1756192360784,0.77701601,110050.0,110040.0,0.25276202]
[1756192360977,0.77701601,110050.0,110040.0,0.25376202]
[1756192361213,0.77701601,110050.0,110040.0,0.09756202]
[1756192361397,0.77386601,110050.0,110040.0,0.09756202]
[1756192361843,0.77601601,110050.0,110040.0,0.27931411]
[1756192362266,0.77601601,110050.0,110040.0,0.09445202]
[1756192362469,0.77601601,110050.0,110040.0,0.001]
[1756192362470,1.54475547,110050.0,110040.0,0.001]
[1756192362677,1.88475547,110050.0,110040.0,0.001]
[1756192363143,1.89110526,110050.0,110040.0,0.001]
[1756192363731,1.98256728,110050.0,110040.0,0.001]
[1756192363939,2.0068542,110050.0,110040.0,0.001]
[1756192364501,2.00685641,110050.0,110040.0,0.001]
[1756192364898,0.1817686,110030.0,110020.0,0.03542356]
[1756192365098,0.93520904,110030.0,110020.0,0.03542356]
[1756192365532,1.29265806,110030.0,110020.0,0.03542356]
[1756192365838,1.33546501,110030.0,110020.0,0.03542356]
[1756192367637,1.34181798,110030.0,110020.0,0.03542356]
[1756192367847,1.33546569,110030.0,110020.0,0.03542356]
[1756192371895,1.33530569,110030.0,110020.0,0.03542356]
[1756192372325,1.17930569,110030.0,110020.0,0.03542356]
[1756192372531,1.33530569,110030.0,110020.0,0.03542356]
[1756192372952,1.17930569,110030.0,110020.0,0.03542356]
[1756192373177,1.33230569,110030.0,110020.0,0.03741356]
[1756192373591,1.33230569,110030.0,110020.0,0.04052356]
[1756192373801,1.33230569,110030.0,110020.0,0.03741356]
[1756192374018,1.31536671,110030.0,110020.0,0.03741356]
[1756192374283,1.26989904,110030.0,110020.0,0.04052356]
[1756192375157,1.27204904,110030.0,110020.0,0.03741356]
[1756192375383,1.26989904,110030.0,110020.0,0.04052356]
[1756192375598,1.11389904,110030.0,110020.0,0.04052356]
[1756192376566,0.86492096,110030.0,110020.0,0.04052356]
[1756192376837,0.77389904,110030.0,110020.0,0.04052356]
[1756192379775,0.93496904,110030.0,110020.0,0.03542356]
[1756192380392,0.1837886,110030.0,110020.0,0.03753356]
[1756192380606,0.77591904,110030.0,110020.0,0.04075356]
[1756192380819,0.77389904,110030.0,110020.0,0.04075356]
[1756192381036,0.77591904,110030.0,110020.0,0.03753356]
[1756192381244,0.93496904,110030.0,110020.0,0.03542356]
[1756192381688,0.95241806,110030.0,110020.0,0.03542356]
[1756192381939,0.17851902,110030.0,110020.0,0.03542356]
[1756192382162,0.95241806,110030.0,110020.0,0.03542356]
[1756192384426,1.38388008,110030.0,110020.0,0.03542356]
[1756192385668,1.38488008,110030.0,110020.0,0.03542356]
[1756192385907,1.39123299,110030.0,110020.0,0.03542356]
[1756192386330,1.39123299,110030.0,110020.0,0.03334356]
[1756192387133,1.38488008,110030.0,110020.0,0.03334356]
[1756192387825,1.38788008,110030.0,110020.0,0.03334356]
[1756192388383,1.23823113,110030.0,110020.0,0.03334356]
[1756192388653,1.39423113,110030.0,110020.0,0.03334356]
[1756192389272,1.41116878,110030.0,110020.0,0.03334356]
[1756192389522,0.52178512,110020.0,110010.0,0.0702]
[1756192389733,1.36339758,110020.0,110010.0,0.07024775]
[1756192389932,1.36644758,110020.0,110010.0,0.07024775]
[1756192390489,1.97602704,110020.0,110010.0,0.07024775]
[1756192390680,1.98237999,110020.0,110010.0,0.07024775]
[1756192390876,1.98337999,110020.0,110010.0,0.07024775]
[1756192391134,2.02866702,110020.0,110010.0,0.07024775]
[1756192391722,1.87266702,110020.0,110010.0,0.07024775]
[1756192392102,1.30002258,110020.0,110010.0,0.07024775]
[1756192392322,1.4708549,110020.0,110010.0,0.07024775]
[1756192392707,1.28596824,110020.0,110010.0,0.07235775]
[1756192393008,1.4365398,110020.0,110010.0,0.07024775]
[1756192393187,1.44501973,110020.0,110010.0,0.07024775]
[1756192394256,1.46455573,110020.0,110010.0,0.07024775]
[1756192395881,1.30855573,110020.0,110010.0,0.07024775]
[1756192396094,1.46455573,110020.0,110010.0,0.07024775]
[1756192399751,0.52180165,110010.0,110000.0,0.00806539]
[1756192399954,2.05182075,110010.0,110000.0,0.00815207]
[1756192400350,1.91326977,110010.0,110000.0,0.00815207]
[1756192400571,1.34607408,110010.0,110000.0,0.01026207]
[1756192400784,1.40859206,110010.0,110000.0,0.01348207]
[1756192401037,0.65199171,110010.0,110000.0,0.01348207]
[1756192401237,1.38362731,110010.0,110000.0,0.00815207]
[1756192401458,1.38667731,110010.0,110000.0,0.00815207]
[1756192401661,1.36972287,110010.0,110000.0,0.00815207]
[1756192401872,1.3866609,110010.0,110000.0,0.00815207]
[1756192402274,1.3846109,110010.0,110000.0,0.01026207]
[1756192402515,1.2286109,110010.0,110000.0,0.01026207]
[1756192402728,1.3846109,110010.0,110000.0,0.01348207]
[1756192402939,0.8865909,110010.0,110000.0,0.01348207]
[1756192403149,1.02565287,110010.0,110000.0,0.01348207]
[1756192403358,1.01930111,110010.0,110000.0,0.01348207]
[1756192403565,0.84585209,110010.0,110000.0,0.01348207]
[1756192403772,1.00185209,110010.0,110000.0,0.01348207]
[1756192403970,1.01930111,110010.0,110000.0,0.01348207]
[1756192404726,0.77593209,110010.0,110000.0,0.01348207]
[1756192404949,0.93193209,110010.0,110000.0,0.01348207]
[1756192405359,0.93193209,110010.0,109920.0,0.84190865]
[1756192405570,0.93213044,109980.0,109970.0,0.27330581]
[1756192405792,0.59213044,109980.0,109970.0,0.27538581]
[1756192406232,0.77398168,109980.0,109970.0,0.09354202]
[1756192406637,0.59213044,109980.0,109970.0,0.2754098]
[1756192406867,0.71283735,109990.0,109970.0,0.27555338]
[1756192407069,0.59213044,109980.0,109970.0,0.27555338]
[1756192407288,0.59213044,109980.0,109970.0,0.27855338]
[1756192407289,0.77398168,109980.0,109970.0,0.27855338]
[1756192407492,0.59213044,109980.0,109970.0,0.28035338]
[1756192407897,0.96713044,109990.0,109980.0,0.18185124]
[1756192408154,0.96713044,109990.0,109980.0,0.27539326]
[1756192408370,0.375,109990.0,109980.0,0.27719326]
[1756192408641,1.14896515,109990.0,109980.0,0.27719326]
[1756192408860,0.96713044,109990.0,109980.0,0.27719326]
[1756192409292,1.14896515,109990.0,109980.0,0.09534202]
[1756192409527,1.30496515,109990.0,109980.0,0.09354202]
[1756192409771,0.71283471,109990.0,109980.0,0.27719326]
[1756192409980,1.12313044,109990.0,109980.0,0.27719326]
[1756192410183,1.12313044,109990.0,109980.0,0.27919326]
[1756192410388,0.86713044,109990.0,109980.0,0.27919326]
[1756192410599,0.62181949,110000.0,109980.0,0.28119326]
[1756192410786,0.86713044,109990.0,109980.0,0.18793124]
[1756192410945,0.86713044,109990.0,109980.0,0.27939326]
[1756192411374,0.59213044,109990.0,109980.0,0.28119326]
[1756192411593,0.59213044,109990.0,109980.0,0.27919326]
[1756192412013,0.86713044,109990.0,109980.0,0.28019326]
[1756192412158,1.04896515,109990.0,109980.0,0.09834202]
[1756192412429,0.45683471,109990.0,109980.0,0.09834202]
[1756192412609,0.59213044,109990.0,109980.0,0.28019326]
[1756192412977,0.86713044,109990.0,109980.0,0.27819326]
[1756192413384,1.04896515,109990.0,109980.0,0.09454202]
[1756192413591,1.31016515,109990.0,109980.0,0.09454202]
[1756192413812,1.30500515,109990.0,109980.0,0.09354202]
[1756192414012,1.06279607,109990.0,109980.0,0.09354202]
[1756192414226,1.06279607,109990.0,109980.0,0.09554202]
[1756192414439,1.06489607,109990.0,109980.0,0.09554202]
[1756192414649,1.06795607,109990.0,109980.0,0.09754202]
[1756192414856,1.06795607,109990.0,109980.0,0.09546202]
[1756192415732,0.375,109990.0,109980.0,0.27939326]
[1756192415979,0.53108,109990.0,109980.0,0.28119326]
[1756192416224,0.84821044,109990.0,109980.0,0.28119326]
[1756192416444,1.12321044,109990.0,109980.0,0.28119326]
[1756192416658,0.1,110000.0,109990.0,0.18183471]
[1756192416867,0.53156,110000.0,109990.0,0.27329673]
[1756192417076,1.31066862,110000.0,109990.0,0.09146202]
[1756192417292,1.90279906,110000.0,109990.0,0.09146202]
[1756192417517,2.24279906,110000.0,109990.0,0.09146202]
[1756192417743,0.55683471,109990.0,109980.0,0.002]
[1756192417949,0.45685124,109980.0,109970.0,0.00014358]
[1756192418154,1.20562168,109980.0,109970.0,0.0916056]
[1756192418358,1.21078168,109980.0,109970.0,0.0916056]
[1756192418563,1.21078168,109980.0,109970.0,0.0936856]
[1756192418801,1.21078168,109980.0,109970.0,0.0916056]
[1756192419610,1.20562168,109980.0,109970.0,0.0936856]
[1756192419743,1.20722168,109980.0,109970.0,0.0936856]
[1756192419952,1.21028168,109980.0,109970.0,0.0916056]
[1756192420453,1.04848168,109980.0,109970.0,0.0936856]
[1756192420667,1.20778168,109980.0,109970.0,0.0936856]
[1756192420877,1.20568168,109980.0,109970.0,0.0936856]
[1756192421667,1.20778168,109980.0,109970.0,0.0946856]
[1756192422107,1.21084168,109980.0,109970.0,0.0926056]
[1756192422906,0.61871124,109980.0,109970.0,0.0936056]
[1756192423210,1.21084168,109980.0,109970.0,0.0936056]
[1756192426324,1.21084168,109980.0,109970.0,0.0956856]
[1756192426740,1.21084168,109980.0,109970.0,0.0936056]
[1756192427198,1.65084168,109980.0,109970.0,0.0936056]
[1756192427401,1.65084168,109980.0,109970.0,0.1198776]
[1756192430056,1.65064168,109980.0,109970.0,0.1198776]
[1756192431865,1.49364168,109980.0,109970.0,0.1198776]
[1756192432068,1.65060168,109980.0,109970.0,0.1198776]
[1756192433434,1.66581708,109980.0,109970.0,0.1198776]
[1756192437381,1.50885708,109980.0,109970.0,0.1198776]
[1756192437562,1.66553708,109980.0,109970.0,0.1198776]
[1756192439298,1.66545708,109980.0,109970.0,0.1198776]
[1756192439509,1.66537708,109980.0,109970.0,0.1198776]
[1756192439835,0.90151124,109980.0,109970.0,0.1198776]
[1756192440033,1.05803124,109980.0,109970.0,0.1198776]
[1756192440286,1.66537708,109980.0,109970.0,0.1198776]
[1756192440901,1.05803124,109980.0,109970.0,0.1198776]
[1756192441356,1.66537708,109980.0,109970.0,0.1198776]
[1756192443387,1.66545708,109980.0,109970.0,0.1198776]
[1756192444153,1.66545708,109980.0,109970.0,0.02841558]
[1756192444384,1.66541708,109980.0,109970.0,0.02841558]
[1756192445481,0.90151124,109980.0,109970.0,0.02841558]
[1756192445686,1.05811124,109980.0,109970.0,0.1199376]
[1756192445863,1.66029708,109980.0,109970.0,0.1199376]
[1756192446293,1.66029708,109980.0,109970.0,0.1209376]
[1756192447424,1.66083708,109980.0,109970.0,0.30280538]
[1756192447580,1.66083708,109980.0,109970.0,0.30380538]
[1756192448234,1.05341124,109980.0,109970.0,0.30380538]
[1756192448450,0.275,109980.0,109970.0,0.30380538]
[1756192448612,0.275,109980.0,109970.0,0.31560978]
[1756192449408,0.88234584,109980.0,109970.0,0.31560978]
[1756192449831,0.60734584,109980.0,109970.0,0.31560978]
[1756192450028,0.88234584,109980.0,109970.0,0.31560978]
[1756192450479,0.275,109980.0,109970.0,0.31560978]
[1756192450630,1.03902584,109980.0,109970.0,0.31560978]
[1756192451096,1.03902584,109980.0,109970.0,0.30380538]
[1756192451097,1.22087708,109980.0,109970.0,0.30380538]
[1756192451421,0.61353124,109980.0,109970.0,0.30380538]
[1756192451634,1.22087708,109980.0,109970.0,0.30380538]
[1756192452946,1.03902584,109980.0,109970.0,0.30380538]
[1756192454388,0.43168,109980.0,109970.0,0.30380538]
[1756192454601,1.03902584,109980.0,109970.0,0.30380538]
[1756192454956,1.22087708,109980.0,109970.0,0.1219376]
[1756192455144,1.22087708,109980.0,109970.0,0.30380538]
[1756192455920,1.22087708,109980.0,109970.0,0.31356368]
[1756192456357,1.06419708,109980.0,109970.0,0.31356368]
[1756192456571,0.21212318,110000.0,109990.0,0.18183471]
[1756192456806,1.32565402,110000.0,109990.0,0.09352202]
[1756192457009,1.32565402,110000.0,109990.0,0.09146202]
[1756192457223,0.71830818,110000.0,109990.0,0.09146202]
[1756192457428,1.93299986,110000.0,109990.0,0.09146202]
[1756192459303,1.32565402,110000.0,109990.0,0.09146202]
[1756192460149,1.32665402,110000.0,109990.0,0.09146202]
[1756192460744,1.93399986,110000.0,109990.0,0.09146202]
[1756192462957,2.27399986,110000.0,109990.0,0.09146202]
[1756192466046,1.66665402,110000.0,109990.0,0.09146202]
[1756192468424,2.27399986,110000.0,109990.0,0.09146202]
[1756192469901,2.29219986,110000.0,109990.0,0.09146202]
[1756192470111,2.27399986,110000.0,109990.0,0.09146202]
[1756192473855,1.05930818,110000.0,109990.0,0.09146202]
[1756192474046,2.27399986,110000.0,109990.0,0.09146202]
[1756192484474,1.66665402,110000.0,109990.0,0.09146202]
[1756192485760,0.90294818,110000.0,109990.0,0.09146202]
[1756192485998,0.86442584,110000.0,109990.0,0.27763966]
[1756192486233,0.001,110000.0,109990.0,0.27716673]
[1756192486905,0.88334584,110000.0,109990.0,0.27716673]
[1756192487352,0.276,110000.0,109990.0,0.27716673]
[1756192487591,1.06416402,110000.0,109990.0,0.09353202]
[1756192487819,1.16934402,110000.0,109990.0,0.09146202]
[1756192488048,1.32542402,110000.0,109990.0,0.09146202]
[1756192488249,1.32542402,110000.0,109990.0,0.09346202]
[1756192488479,1.32542402,110000.0,109990.0,0.27936673]
[1756192488713,1.05042402,110000.0,109990.0,0.27936673]
[1756192488918,1.32542402,110000.0,109990.0,0.27936673]
[1756192489133,1.32542402,110000.0,109990.0,0.09753202]
[1756192489540,0.98234584,110000.0,109990.0,0.27936673]
[1756192489768,1.13842584,110000.0,109990.0,0.27936673]
[1756192489987,0.53108,110000.0,109990.0,0.27936673]
[1756192490172,1.13842584,110000.0,109990.0,0.27936673]
[1756192490489,0.98234584,110000.0,109990.0,0.27936673]
[1756192491145,0.275,110000.0,109990.0,0.28116673]
[1756192491370,0.88234584,110000.0,109990.0,0.28116673]
[1756192491600,0.88234584,110000.0,109990.0,0.27936673]
[1756192491833,1.67668986,110000.0,109990.0,0.09546202]
[1756192492060,1.93276986,110000.0,109990.0,0.09546202]
[1756192493230,1.78276986,110000.0,109990.0,0.09546202]
[1756192493448,1.69071057,110000.0,109990.0,0.09546202]
[1756192493677,0.47601889,110000.0,109990.0,0.09546202]
[1756192493897,1.69071057,110000.0,109990.0,0.09546202]
[1756192494336,1.07814473,110000.0,109990.0,0.09546202]
[1756192494561,1.08332473,110000.0,109990.0,0.09546202]
[1756192494795,0.47597889,110000.0,109990.0,0.09546202]
[1756192495041,1.08332473,110000.0,109990.0,0.09546202]
[1756192496444,1.69067057,110000.0,109990.0,0.09546202]
[1756192496644,1.71800557,110000.0,109990.0,0.09546202]
[1756192498510,1.66172231,110000.0,109990.0,0.09546202]
[1756192500652,1.50568231,110000.0,109990.0,0.09546202]
[1756192500859,1.05437647,110000.0,109990.0,0.27729673]
[1756192501073,0.29099063,110000.0,109990.0,0.27941673]
[1756192501282,0.183375,110000.0,109990.0,0.28121673]
[1756192501527,0.68400329,110000.0,109990.0,0.43545673]
[1756192501760,0.030342,110010.0,110000.0,0.18181818]
[1756192502010,1.05218694,110010.0,110000.0,0.2732802]
[1756192502290,1.02184494,110010.0,110000.0,0.2754002]
[1756192502564,1.02694494,110010.0,110000.0,0.09146202]
[1756192503466,0.4195991,110010.0,110000.0,0.09246202]
[1756192503946,1.02694494,110010.0,110000.0,0.09246202]
[1756192506578,1.05427694,110010.0,110000.0,0.09246202]
[1756192507240,1.39427694,110010.0,110000.0,0.001]
[1756192508365,1.23797502,110010.0,110000.0,0.001]
[1756192508565,1.39401502,110010.0,110000.0,0.001]
[1756192517609,1.23797502,110010.0,110000.0,0.001]
[1756192517817,1.39397502,110010.0,110000.0,0.00312]
[1756192518083,1.39397502,110010.0,110000.0,0.001]
[1756192518412,0.78453918,110010.0,110000.0,0.09458202]
[1756192518625,1.39188502,110010.0,110000.0,0.09458202]
[1756192518754,1.39397502,110010.0,110000.0,0.09458202]
[1756192519630,1.23797502,110010.0,110000.0,0.2764002]
[1756192519871,1.05107337,110010.0,110000.0,0.2764002]
[1756192521127,1.05107337,110010.0,110000.0,0.29473481]
[1756192521762,0.10372753,110010.0,110000.0,0.29473481]
[1756192521972,0.027332,110010.0,110000.0,0.29473481]
[1756192522203,0.07639553,110020.0,110010.0,0.18180165]
[1756192522404,0.07940553,110030.0,110020.0,0.18178512]
[1756192522565,0.86706937,110030.0,110020.0,0.27324714]
[1756192522763,1.04883797,110030.0,110020.0,0.27324714]
[1756192523019,1.39393797,110030.0,110020.0,0.09146202]
[1756192524161,1.39393797,110030.0,110020.0,0.09046202]
[1756192525265,1.39593797,110030.0,110020.0,0.09046202]
[1756192526100,0.89993797,110030.0,110020.0,0.09046202]
[1756192526305,0.87260997,110030.0,110020.0,0.09046202]
[1756192526513,1.02860997,110030.0,110020.0,0.09046202]
[1756192528848,1.02860997,110030.0,110020.0,0.27224714]
[1756192529568,1.02860997,110030.0,110020.0,0.09046202]
[1756192530549,0.41616413,110030.0,110020.0,0.27423714]
[1756192530802,1.02847997,110030.0,110020.0,0.27423714]
[1756192531491,1.02847997,110030.0,110020.0,0.09046202]
[1756192534496,0.42113413,110030.0,110020.0,0.09046202]
[1756192534688,1.02847997,110030.0,110020.0,0.27423714]
[1756192534889,1.04667997,110030.0,110020.0,0.27224714]
[1756192535101,1.02847997,110030.0,110020.0,0.27224714]
[1756192535728,0.87247997,110030.0,110020.0,0.27224714]
[1756192535940,1.02843997,110030.0,110020.0,0.27224714]
[1756192537647,1.02843997,110030.0,110020.0,0.09046202]
[1756192537870,1.02843997,110030.0,110020.0,0.27224714]
[1756192538323,0.61431584,110030.0,110020.0,0.27423714]
[1756192538530,0.002,110030.0,110020.0,0.43199714]
[1756192538738,0.60934584,110030.0,110020.0,0.43199714]
[1756192539490,0.60834584,110030.0,110020.0,0.43199714]
[1756192539905,0.60734584,110030.0,110020.0,0.43199714]
[1756192540311,0.60734584,110030.0,110020.0,0.43399714]
[1756192540520,0.60734584,110030.0,110020.0,0.43219714]
[1756192541356,1.02441474,110040.0,110020.0,0.43419714]
[1756192541561,0.60734584,110030.0,110020.0,0.43419714]
[1756192542412,0.60734584,110030.0,110020.0,0.43219714]
[1756192542622,1.02643997,110030.0,110020.0,0.09246202]
[1756192543260,0.23235553,110030.0,110020.0,0.27850945]
[1756192543462,0.60734584,110030.0,110020.0,0.27723714]
[1756192544468,0.6011089,110040.0,110030.0,0.1817686]
[1756192544731,0.86549474,110040.0,110030.0,0.43114062]
[1756192544944,0.86549346,110040.0,110030.0,0.43114062]
[1756192545162,0.29462848,110050.0,110040.0,0.18175209]
[1756192545365,0.90197432,110050.0,110040.0,0.27520411]
[1756192545564,0.89288755,110050.0,110040.0,0.27520411]
[1756192545970,0.89785755,110050.0,110040.0,0.27520411]
[1756192546082,0.89288755,110050.0,110040.0,0.27520411]
[1756192546507,1.05377755,110050.0,110040.0,0.09345202]
[1756192546714,1.05377755,110050.0,110040.0,0.09146202]
[1756192547334,1.66112339,110050.0,110040.0,0.09146202]
[1756192547682,1.66112339,110050.0,110010.0,0.18180161]
[1756192547683,0.18178512,110020.0,110010.0,0.18180161]
[1756192547890,0.78913096,110020.0,110010.0,0.1209196]
[1756192548097,0.79114096,110020.0,110010.0,0.2748496]
[1756192548311,0.79410096,110020.0,110010.0,0.45864125]
[1756192548512,0.79410096,110020.0,110010.0,0.2768396]
[1756192548717,0.79410096,110020.0,110010.0,0.2475256]
[1756192548925,0.79410096,110020.0,110010.0,0.42932725]
[1756192549131,0.79410096,110020.0,110010.0,0.2495156]
[1756192549514,0.79410096,110020.0,110010.0,0.43131725]
[1756192549853,0.79410096,110020.0,110010.0,0.43331725]
[1756192550460,0.79410096,110020.0,110010.0,0.2495256]
[1756192550712,0.79410096,110020.0,110010.0,0.43331725]
[1756192551074,0.79410096,110020.0,110010.0,0.0955956]
[1756192551273,0.79410096,110020.0,110010.0,0.2515156]
[1756192551474,0.79410096,110020.0,110010.0,0.43331725]
[1756192551698,0.78913096,110020.0,110010.0,0.43331725]
[1756192551959,0.79410096,110020.0,110010.0,0.2515156]
[1756192552185,0.79410096,110020.0,110010.0,0.43331725]
[1756192552386,0.79410096,110020.0,110010.0,0.43631725]
[1756192552594,0.79410096,110020.0,110010.0,0.43432725]
[1756192553225,0.79410096,110020.0,110010.0,0.43631725]
[1756192553448,0.79410096,110020.0,110010.0,0.2545156]
[1756192554415,0.79410096,110020.0,110010.0,0.2525256]
[1756192554639,0.79410096,110020.0,110010.0,0.0966056]
[1756192555047,1.36641649,110020.0,110010.0,0.00514358]
[1756192555909,1.99121135,110020.0,110010.0,0.00514358]
[1756192556334,1.99121135,110020.0,110010.0,0.00214358]
[1756192556541,1.38386551,110020.0,110010.0,0.00214358]
[1756192556730,1.38386551,110020.0,110010.0,0.00414358]
[1756192557153,1.38386551,110020.0,110010.0,0.00014358]
[1756192557508,1.38486551,110020.0,110010.0,0.00214358]
[1756192557930,1.99221135,110020.0,110010.0,0.00214358]
[1756192558129,1.99221135,110020.0,110010.0,0.00014358]
[1756192558338,1.40128217,110020.0,110010.0,0.00014358]
[1756192558819,2.00862801,110020.0,110010.0,0.00014358]
[1756192560451,1.27269517,110020.0,110010.0,0.00014358]
[1756192560596,1.42861517,110020.0,110010.0,0.00014358]
[1756192561003,1.25524615,110020.0,110010.0,0.00014358]
[1756192561205,1.41116615,110020.0,110010.0,0.00014358]
[1756192562795,2.01851199,110020.0,110010.0,0.00014358]
[1756192562962,2.03596101,110020.0,110010.0,0.00014358]
[1756192563704,1.42861517,110020.0,110010.0,0.00014358]
[1756192564891,2.03596101,110020.0,110010.0,0.00014358]
[1756192570957,2.16924592,110020.0,110010.0,1e-08]
[1756192571161,2.21189549,110020.0,110010.0,1e-08]
[1756192571370,2.2266878,110020.0,110010.0,1e-08]
[1756192571584,2.687867,110020.0,110010.0,1e-08]
[1756192572598,2.688867,110020.0,110010.0,1e-08]
[1756192573843,2.78031229,110020.0,110010.0,1e-08]
[1756192574050,3.38765813,110020.0,110010.0,1e-08]
[1756192574256,3.38665813,110020.0,110010.0,1e-08]
[1756192574463,2.77931229,110020.0,110010.0,1e-08]
[1756192574662,2.78031229,110020.0,110010.0,1e-08]
[1756192574915,3.41011087,110020.0,110010.0,1e-08]
[1756192575265,3.41711087,110020.0,110010.0,1e-08]
[1756192575472,0.61569579,109980.0,109970.0,0.026272]
[1756192575711,1.38100163,109980.0,109970.0,0.026272]
[1756192576162,1.38423163,109980.0,109970.0,0.026272]
[1756192576367,1.99157747,109980.0,109970.0,0.028292]
[1756192576500,1.98634747,109980.0,109970.0,0.028292]
[1756192576703,1.99162516,109980.0,109970.0,0.027272]
[1756192576911,1.38427932,109980.0,109970.0,0.027272]
[1756192577364,1.99162516,109980.0,109970.0,0.027272]
[1756192577795,1.99162516,109980.0,109970.0,0.028272]
[1756192578729,2.08307045,109980.0,109970.0,0.028272]
[1756192578934,1.83566516,109980.0,109970.0,0.028272]
[1756192579337,2.01897016,109980.0,109970.0,0.028272]
[1756192582154,2.03843004,109980.0,109970.0,0.028272]
[1756192582416,2.0553212,109980.0,109970.0,0.028272]
[1756192582820,1.8993612,109980.0,109970.0,0.028272]
[1756192583153,2.0553212,109980.0,109970.0,0.028272]
[1756192583358,1.8993612,109980.0,109970.0,0.028272]
[1756192583482,2.0553212,109980.0,109970.0,0.028272]
[1756192583697,1.86104948,109980.0,109970.0,0.028272]
[1756192584911,1.70508948,109980.0,109970.0,0.028272]
[1756192585116,1.24847364,109980.0,109970.0,0.029292]
[1756192585588,1.09460364,109980.0,109970.0,0.028292]
[1756192585724,1.25369364,109980.0,109970.0,0.028302]
[1756192586082,1.25369364,109980.0,109970.0,0.026272]
[1756192586279,1.09773364,109980.0,109970.0,0.028302]
[1756192586501,1.09251364,109980.0,109970.0,0.028302]
[1756192586707,1.24851364,109980.0,109970.0,0.028302]
[1756192586909,1.22638864,109980.0,109970.0,0.028302]
[1756192587114,1.22118131,109980.0,109970.0,0.028302]
[1756192587736,1.20373229,109980.0,109970.0,0.028302]
[1756192587934,1.16736858,109980.0,109970.0,0.028302]
[1756192589361,1.18427798,109980.0,109970.0,0.028302]
[1756192590180,1.17258858,109980.0,109970.0,0.028302]
[1756192590381,1.18949913,109980.0,109970.0,0.028302]
[1756192591167,1.20898236,109980.0,109970.0,0.026272]
[1756192591483,1.20898236,109980.0,109970.0,0.028302]
[1756192591688,1.20898236,109980.0,109970.0,0.026272]
[1756192592389,1.20898236,109980.0,109970.0,0.028302]
[1756192592599,1.20376236,109980.0,109970.0,0.028302]
[1756192592814,0.59641652,109980.0,109970.0,0.028302]
[1756192593028,1.04776236,109980.0,109970.0,0.028302]
[1756192593246,1.20376236,109980.0,109970.0,0.028302]
[1756192593452,1.04776236,109980.0,109970.0,0.030102]
[1756192593672,1.20376236,109980.0,109970.0,0.030102]
[1756192594091,1.20376236,109980.0,109970.0,0.028302]
[1756192595333,0.37644147,109980.0,109970.0,0.3034318]
[1756192595540,4.769e-05,109980.0,109970.0,0.3034318]
[1756192595965,0.34004769,109980.0,109970.0,0.3034318]
[1756192596416,0.52189893,109980.0,109970.0,0.3034318]
[1756192596630,0.34004769,109980.0,109970.0,0.3034318]
[1756192597253,0.34004769,109980.0,109970.0,0.3044318]
[1756192597493,0.34004769,109980.0,109970.0,0.3064318]
[1756192597681,0.34004769,109980.0,109970.0,0.3054318]
[1756192598108,0.34004769,109980.0,109970.0,0.3084318]
[1756192600194,0.52189893,109980.0,109970.0,0.3084318]
[1756192600413,0.52189893,109980.0,109970.0,0.3066318]
[1756192600618,0.52189893,109980.0,109970.0,0.3084318]
[1756192600987,1.12924477,109980.0,109970.0,0.12476402]
[1756192601386,0.52189893,109980.0,109970.0,0.3084318]
[1756192602523,0.52189893,109980.0,109970.0,0.3066318]
[1756192603635,0.52189893,109980.0,109970.0,0.3084318]
[1756192604177,4.769e-05,109980.0,109970.0,0.91577764]
[1756192606053,4.769e-05,109980.0,109970.0,0.3084318]
[1756192606228,4.769e-05,109980.0,109970.0,0.91577764]
[1756192607647,4.769e-05,109980.0,109970.0,0.3084318]
[1756192608013,4.769e-05,109980.0,109970.0,0.91577764]
[1756192608621,4.769e-05,109980.0,109970.0,0.3084318]
[1756192608847,4.769e-05,109980.0,109970.0,0.91577764]
[1756192609931,4.769e-05,109980.0,109970.0,1.33447764]
[1756192610160,4.769e-05,109980.0,109970.0,1.06577764]
[1756192610503,4.769e-05,109980.0,109970.0,1.09310764]
[1756192610926,4.769e-05,109980.0,109970.0,1.09110764]
[1756192611137,4.769e-05,109980.0,109970.0,1.09410764]
[1756192611761,4.769e-05,109980.0,109970.0,1.09110764]
[1756192612165,4.769e-05,109980.0,109970.0,1.09410764]
[1756192613027,4.769e-05,109980.0,109970.0,1.41155666]
[1756192613426,4.769e-05,109980.0,109970.0,1.81155666]
[1756192613579,4.769e-05,109980.0,109970.0,2.03011666]
[1756192613777,4.769e-05,109980.0,109970.0,2.02711666]
[1756192614183,4.769e-05,109980.0,109970.0,2.02911666]
[1756192614387,4.769e-05,109980.0,109970.0,2.18503666]
[1756192615172,4.769e-05,109980.0,109970.0,2.18203666]
[1756192615527,4.769e-05,109980.0,109970.0,2.18603666]
[1756192616341,4.769e-05,109980.0,109970.0,2.19503666]
[1756192616942,4.769e-05,109980.0,109970.0,2.03911666]
[1756192617289,4.769e-05,109980.0,109970.0,2.19503666]
[1756192618861,4.769e-05,109980.0,109970.0,0.4919318]
[1756192618862,0.00520769,109980.0,109970.0,0.4919318]
[1756192619131,0.00520769,109980.0,109970.0,0.6478518]
[1756192619342,0.00520769,109980.0,109970.0,0.4919318]
[1756192619549,0.00520769,109980.0,109970.0,0.6478518]
[1756192619955,0.00520769,109980.0,109970.0,0.6478118]
[1756192621150,0.00520769,109980.0,109970.0,0.6498018]
[1756192621341,0.00520769,109980.0,109970.0,1.25714764]
[1756192621743,4.769e-05,109980.0,109970.0,1.25714764]
[1756192621946,4.769e-05,109980.0,109970.0,1.25894764]